[Event "Kvibergspelen September 2019"]
[Site "Prioritet Serneke Arena, Krutvagen 2, Gothenburg, Sweden"]
[Date "2019.09.28"]
[Round "5.15"]
[White "Malmstig, Erik"]
[Black "Andersson, Lars"]
[Result "0-1"]
[TimeControl "15 minutes + 5 seconds per move from move one (Round 1 - 4) / 90 minutes + 30 seconds per move from move one (Round 5 - 8)"]
[WhiteTitle "FM"]
[WhiteFideId "1702866"]
[BlackFideId "1706772"]
[WhiteElo "2257"]
[BlackElo "2029"]

1. d4 {[%clk 01:30:45]} {[%emt 00:00:08]} Nf6 {[%clk 01:30:59]} {[%emt
00:00:08]} 2. c4 {[%clk 01:31:01]} {[%emt 00:00:13]} g6 {[%clk 01:31:23]}
{[%emt 00:00:06]} 3. Nc3 {[%clk 01:31:24]} {[%emt 00:00:08]} Bg7 {[%clk
01:31:49]} {[%emt 00:00:04]} 4. e4 {[%clk 01:31:46]} {[%emt 00:00:07]} d6
{[%clk 01:32:15]} {[%emt 00:00:05]} 5. Nge2 {[%clk 01:32:08]} {[%emt 00:00:08]}
O-O {[%clk 01:30:45]} {[%emt 00:01:59]} 6. Ng3 {[%clk 01:32:27]} {[%emt
00:00:11]} e5 {[%clk 01:28:18]} {[%emt 00:02:58]} 7. d5 {[%clk 01:32:38]}
{[%emt 00:00:18]} c6 {[%clk 01:28:36]} {[%emt 00:00:12]} 8. Be2 {[%clk
01:32:42]} {[%emt 00:00:26]} h5 {[%clk 01:18:52]} {[%emt 00:10:14]} 9. Bg5
{[%clk 01:32:02]} {[%emt 00:01:09]} Qb6 {[%clk 01:16:41]} {[%emt 00:02:42]} 10.
O-O {[%clk 01:18:17]} {[%emt 00:14:15]} cxd5 {[%clk 01:06:21]} {[%emt
00:10:51]} 11. Na4 {[%clk 01:16:58]} {[%emt 00:01:48]} Qc7 {[%clk 01:04:59]}
{[%emt 00:01:52]} 12. cxd5 {[%clk 01:16:09]} {[%emt 00:01:19]} Nh7 {[%clk
01:04:50]} {[%emt 00:00:40]} 13. Rc1 {[%clk 01:11:59]} {[%emt 00:04:39]} Qd7
{[%clk 01:04:18]} {[%emt 00:01:01]} 14. Be3 {[%clk 01:10:01]} {[%emt 00:02:29]}
h4 {[%clk 01:02:42]} {[%emt 00:02:06]} 15. Nh1 {[%clk 01:10:06]} {[%emt
00:00:25]} h3 {[%clk 00:53:47]} {[%emt 00:09:26]} 16. g3 {[%clk 01:07:46]}
{[%emt 00:02:50]} f5 {[%clk 00:53:16]} {[%emt 00:01:01]} 17. exf5 {[%clk
01:02:12]} {[%emt 00:06:04]} gxf5 {[%clk 00:32:07]} {[%emt 00:21:39]} 18. f4
{[%clk 00:58:59]} {[%emt 00:03:42]} Bh6 {[%clk 00:32:21]} {[%emt 00:00:17]} 19.
Nc3 {[%clk 00:56:44]} {[%emt 00:02:45]} Qe7 {[%clk 00:29:26]} {[%emt 00:03:26]}
20. Qd2 {[%clk 00:53:17]} {[%emt 00:03:57]} Bd7 {[%clk 00:19:08]} {[%emt
00:10:48]} 21. Nf2 {[%clk 00:44:51]} {[%emt 00:08:56]} Na6 {[%clk 00:18:33]}
{[%emt 00:01:06]} 22. Nxh3 {[%clk 00:41:48]} {[%emt 00:03:32]} Nc5 {[%clk
00:14:34]} {[%emt 00:04:29]} 23. fxe5 {[%clk 00:38:40]} {[%emt 00:03:38]} Bxe3+
{[%clk 00:14:56]} {[%emt 00:00:08]} 24. Qxe3 {[%clk 00:38:50]} {[%emt
00:00:20]} dxe5 {[%clk 00:14:46]} {[%emt 00:00:41]} 25. d6 {[%clk 00:30:35]}
{[%emt 00:08:45]} Qxd6 {[%clk 00:14:43]} {[%emt 00:00:32]} 26. Rfd1 {[%clk
00:30:35]} {[%emt 00:00:30]} f4 {[%clk 00:10:06]} {[%emt 00:05:07]} 27. Qf2
{[%clk 00:13:51]} {[%emt 00:17:13]} Qf6 {[%clk 00:03:17]} {[%emt 00:07:19]} 28.
Qxc5 {[%clk 00:11:30]} {[%emt 00:02:51]} Bxh3 {[%clk 00:03:39]} {[%emt
00:00:09]} 29. Rd6 {[%clk 00:05:34]} {[%emt 00:06:26]} Qg7 {[%clk 00:02:39]}
{[%emt 00:01:30]} 30. Bd3 {[%clk 00:05:21]} {[%emt 00:00:42]} Bf5 {[%clk
00:02:24]} {[%emt 00:00:46]} 31. Qd5+ {[%clk 00:04:58]} {[%emt 00:00:53]} Kh8
{[%clk 00:02:27]} {[%emt 00:00:26]} 32. Bxf5 {[%clk 00:05:09]} {[%emt
00:00:20]} Rxf5 {[%clk 00:02:51]} {[%emt 00:00:07]} 33. Rd7 {[%clk 00:05:06]}
{[%emt 00:00:32]} Qg6 {[%clk 00:02:41]} {[%emt 00:00:41]} 34. Ne4 {[%clk
00:04:38]} {[%emt 00:00:58]} Raf8 {[%clk 00:01:33]} {[%emt 00:01:37]} 35. Rxb7
{[%clk 00:03:57]} {[%emt 00:01:12]} fxg3 {[%clk 00:01:44]} {[%emt 00:00:19]} 36.
Nxg3 {[%clk 00:03:52]} {[%emt 00:00:35]} Ng5 {[%clk 00:01:04]} {[%emt
00:01:10]} 37. Kh1 {[%clk 00:01:47]} {[%emt 00:02:35]} Nh3 {[%clk 00:01:11]}
{[%emt 00:00:23]} 38. Qc4 {[%clk 00:01:08]} {[%emt 00:01:09]} Nf2+ {[%clk
00:01:13]} {[%emt 00:00:28]} 39. Kg2 {[%clk 00:01:18]} {[%emt 00:00:20]} Ng4
{[%clk 00:01:28]} {[%emt 00:00:15]} 40. Kg1 {[%clk 00:01:00]} {[%emt 00:00:48]}
Qg5 {[%clk 00:01:17]} {[%emt 00:00:41]} 41. Re1 {[%clk 00:00:47]} {[%emt
00:00:43]} Qd2 {[%clk 00:00:58]} {[%emt 00:00:49]} 42. Re2 {[%clk 00:00:41]}
{[%emt 00:00:36]} Qd1+ {[%clk 00:00:59]} {[%emt 00:00:28]} 43. Kg2 {[%clk
00:01:06]} {[%emt 00:00:05]} Rf2+ {[%clk 00:00:43]} {[%emt 00:00:46]} 44. Kh3
{[%clk 00:01:18]} {[%emt 00:00:19]} Rxe2 {[%clk 00:00:43]} {[%emt 00:00:30]} 45.
Qxe2 {[%clk 00:01:25]} {[%emt 00:00:22]} Nf2+ {[%clk 00:00:58]} {[%emt
00:00:15]} 46. Kh4 {[%clk 00:01:23]} {[%emt 00:00:33]} Qd8+ {[%clk 00:01:05]}
{[%emt 00:00:23]} 47. Kh5 {[%clk 00:01:38]} {[%emt 00:00:15]} Qe8+ {[%clk
00:01:25]} {[%emt 00:00:10]} 48. Kg5 {[%clk 00:01:48]} {[%emt 00:00:19]} Rg8+
{[%clk 00:01:20]} {[%emt 00:00:37]} 49. Kf5 {[%clk 00:00:50]} {[%emt 00:01:28]}
Qg6+ {[%clk 00:01:20]} {[%emt 00:00:29]} 0-1

[Event "Kvibergspelen September 2019"]
[Site "Prioritet Serneke Arena, Krutvagen 2, Gothenburg, Sweden"]
[Date "2019.09.28"]
[Round "5.16"]
[White "Sidorchuk, Dmitry"]
[Black "Karlsson, Jorgen"]
[Result "1-0"]
[TimeControl "15 minutes + 5 seconds per move from move one (Round 1 - 4) / 90 minutes + 30 seconds per move from move one (Round 5 - 8)"]
[WhiteFideId "14110903"]
[BlackFideId "1711679"]
[WhiteElo "2266"]
[BlackElo "2088"]

1. d4 {[%clk 01:30:55]} {[%emt 00:00:03]} g6 {[%clk 01:30:54]} {[%emt
00:00:07]} 2. c4 {[%clk 01:30:58]} {[%emt 00:00:27]} Bg7 {[%clk 01:31:18]}
{[%emt 00:00:05]} 3. Nf3 {[%clk 01:30:18]} {[%emt 00:01:10]} d6 {[%clk
01:31:34]} {[%emt 00:00:15]} 4. Nc3 {[%clk 01:29:37]} {[%emt 00:01:10]} Nf6
{[%clk 01:31:57]} {[%emt 00:00:08]} 5. e4 {[%clk 01:29:43]} {[%emt 00:00:23]}
O-O {[%clk 01:32:17]} {[%emt 00:00:10]} 6. Be2 {[%clk 01:29:59]} {[%emt
00:00:14]} Bg4 {[%clk 01:32:33]} {[%emt 00:00:14]} 7. Ng1 {[%clk 01:25:55]}
{[%emt 00:04:33]} Bd7 {[%clk 01:29:49]} {[%emt 00:03:14]} 8. Be3 {[%clk
01:20:45]} {[%emt 00:05:40]} e5 {[%clk 01:26:06]} {[%emt 00:04:13]} 9. d5
{[%clk 01:18:01]} {[%emt 00:03:14]} Ne8 {[%clk 01:25:18]} {[%emt 00:01:18]} 10.
g4 {[%clk 01:12:19]} {[%emt 00:06:11]} f5 {[%clk 01:22:30]} {[%emt 00:03:18]}
11. h4 {[%clk 01:09:44]} {[%emt 00:03:06]} f4 {[%clk 01:14:05]} {[%emt
00:08:56]} 12. Bd2 {[%clk 01:09:59]} {[%emt 00:00:14]} h6 {[%clk 01:13:02]}
{[%emt 00:01:33]} 13. h5 {[%clk 01:04:28]} {[%emt 00:06:01]} Qf6 {[%clk
00:55:54]} {[%emt 00:17:37]} 14. Qb3 {[%clk 00:57:46]} {[%emt 00:07:12]} b6
{[%clk 00:54:37]} {[%emt 00:01:47]} 15. O-O-O {[%clk 00:50:42]} {[%emt
00:07:35]} a5 {[%clk 00:53:41]} {[%emt 00:01:26]} 16. hxg6 {[%clk 00:50:15]}
{[%emt 00:00:56]} Qxg6 {[%clk 00:53:40]} {[%emt 00:00:31]} 17. Nf3 {[%clk
00:46:05]} {[%emt 00:04:41]} Na6 {[%clk 00:51:33]} {[%emt 00:02:37]} 18. Rdg1
{[%clk 00:39:16]} {[%emt 00:07:18]} Nc5 {[%clk 00:44:19]} {[%emt 00:07:44]} 19.
Qc2 {[%clk 00:39:31]} {[%emt 00:00:15]} Nf6 {[%clk 00:36:07]} {[%emt 00:08:42]}
20. g5 {[%clk 00:36:12]} {[%emt 00:03:49]} hxg5 {[%clk 00:36:04]} {[%emt
00:00:33]} 21. Rxg5 {[%clk 00:25:08]} {[%emt 00:11:35]} Qe8 {[%clk 00:35:36]}
{[%emt 00:00:58]} 22. Rhg1 {[%clk 00:24:19]} {[%emt 00:01:18]} Rf7 {[%clk
00:35:49]} {[%emt 00:00:17]} 23. Nh4 {[%clk 00:24:15]} {[%emt 00:00:34]} a4
{[%clk 00:30:19]} {[%emt 00:06:00]} 24. Kb1 {[%clk 00:18:11]} {[%emt 00:06:35]}
Qc8 {[%clk 00:26:52]} {[%emt 00:03:57]} 25. Be1 {[%clk 00:15:46]} {[%emt
00:02:55]} c6 {[%clk 00:23:03]} {[%emt 00:04:18]} 26. f3 {[%clk 00:14:48]}
{[%emt 00:01:28]} Ra7 {[%clk 00:10:24]} {[%emt 00:13:10]} 27. Bf1 {[%clk
00:14:41]} {[%emt 00:00:36]} cxd5 {[%clk 00:09:26]} {[%emt 00:01:29]} 28. cxd5
{[%clk 00:14:47]} {[%emt 00:00:24]} a3 {[%clk 00:08:47]} {[%emt 00:01:09]} 29.
Bb5 {[%clk 00:12:46]} {[%emt 00:02:30]} axb2 {[%clk 00:07:50]} {[%emt
00:01:27]} 30. Bxd7 {[%clk 00:12:39]} {[%emt 00:00:38]} Rfxd7 {[%clk 00:07:23]}
{[%emt 00:00:57]} 31. Nf5 {[%clk 00:12:14]} {[%emt 00:00:54]} Ne8 {[%clk
00:03:27]} {[%emt 00:04:26]} 32. Qh2 {[%clk 00:11:45]} {[%emt 00:00:59]} Qa6
{[%clk 00:03:25]} {[%emt 00:00:32]} 33. Rh1 {[%clk 00:09:37]} {[%emt 00:02:38]}
Qd3+ {[%clk 00:01:59]} {[%emt 00:01:56]} 34. Kxb2 {[%clk 00:09:45]} {[%emt
00:00:22]} Kf8 {[%clk 00:01:50]} {[%emt 00:00:39]} 35. Rh5 {[%clk 00:03:19]}
{[%emt 00:06:56]} Nf6 {[%emt 00:01:50]} 1-0

[Event "Kvibergspelen September 2019"]
[Site "Prioritet Serneke Arena, Krutvagen 2, Gothenburg, Sweden"]
[Date "2019.09.28"]
[Round "5.17"]
[White "Crevatin, Leo"]
[Black "Fransson, Lennart"]
[Result "1-0"]
[TimeControl "15 minutes + 5 seconds per move from move one (Round 1 - 4) / 90 minutes + 30 seconds per move from move one (Round 5 - 8)"]
[WhiteTitle "CM"]
[WhiteFideId "1726307"]
[BlackFideId "1706756"]
[WhiteElo "2235"]
[BlackElo "2008"]

1. d4 {[%clk 01:30:57]} {[%emt 00:00:02]} Nf6 {[%clk 01:30:53]} {[%emt
00:00:07]} 2. c4 {[%clk 01:31:22]} {[%emt 00:00:04]} c5 {[%clk 01:31:16]}
{[%emt 00:00:09]} 3. d5 {[%clk 01:31:49]} {[%emt 00:00:03]} d6 {[%clk
01:31:33]} {[%emt 00:00:12]} 4. Nc3 {[%clk 01:32:13]} {[%emt 00:00:07]} g6
{[%clk 01:31:54]} {[%emt 00:00:09]} 5. e4 {[%clk 01:32:40]} {[%emt 00:00:03]}
Bg7 {[%clk 01:32:22]} {[%emt 00:00:02]} 6. Nge2 {[%clk 01:33:00]} {[%emt
00:00:10]} O-O {[%clk 01:32:15]} {[%emt 00:00:37]} 7. Ng3 {[%clk 01:33:21]}
{[%emt 00:00:09]} Na6 {[%clk 01:32:16]} {[%emt 00:00:29]} 8. Be2 {[%clk
01:33:41]} {[%emt 00:00:09]} Bd7 {[%clk 01:32:18]} {[%emt 00:00:28]} 9. O-O
{[%emt 00:01:25]} Nc7 {[%clk 01:31:30]} {[%emt 00:00:26]} 10. Bf4 {[%clk
01:29:29]} {[%emt 00:04:41]} Rb8 {[%clk 01:29:42]} {[%emt 00:02:17]} 11. e5
{[%clk 01:25:39]} {[%emt 00:04:21]} Nfe8 {[%clk 01:29:05]} {[%emt 00:01:07]} 12.
exd6 {[%clk 01:23:05]} {[%emt 00:03:04]} exd6 {[%clk 01:29:31]} {[%emt
00:00:03]} 13. Nge4 {[%clk 01:21:09]} {[%emt 00:02:27]} Bc8 {[%clk 01:17:22]}
{[%emt 00:12:37]} 14. Qd2 {[%clk 01:14:50]} {[%emt 00:06:50]} f5 {[%clk
01:11:53]} {[%emt 00:05:59]} 15. Ng3 {[%clk 01:13:50]} {[%emt 00:01:30]} Bd7
{[%clk 01:07:41]} {[%emt 00:04:41]} 16. Rae1 {[%clk 00:58:50]} {[%emt
00:15:31]} h5 {[%clk 00:58:00]} {[%emt 00:10:10]} 17. Bd3 {[%clk 00:55:51]}
{[%emt 00:03:29]} Bf6 {[%clk 00:45:57]} {[%emt 00:12:33]} 18. Bh6 {[%clk
00:50:52]} {[%emt 00:05:30]} Rf7 {[%clk 00:45:45]} {[%emt 00:00:41]} 19. Nge2
{[%clk 00:46:36]} {[%emt 00:04:47]} b5 {[%clk 00:41:49]} {[%emt 00:04:26]} 20.
Nf4 {[%clk 00:40:17]} {[%emt 00:06:49]} bxc4 {[%clk 00:35:43]} {[%emt
00:06:36]} 21. Bxc4 {[%clk 00:40:36]} {[%emt 00:00:11]} Bg5 {[%clk 00:26:16]}
{[%emt 00:09:56]} 22. Bxg5 {[%clk 00:40:32]} {[%emt 00:00:35]} Qxg5 {[%clk
00:26:43]} {[%emt 00:00:03]} 23. Re3 {[%clk 00:36:26]} {[%emt 00:04:37]} h4
{[%clk 00:26:32]} {[%emt 00:00:39]} 24. Rfe1 {[%clk 00:34:06]} {[%emt
00:02:51]} Qf6 {[%clk 00:23:16]} {[%emt 00:03:45]} 25. Ne6 {[%clk 00:27:44]}
{[%emt 00:06:53]} Na8 {[%clk 00:17:46]} {[%emt 00:06:00]} 26. Nxc5 {[%clk
00:23:05]} {[%emt 00:05:09]} dxc5 {[%clk 00:17:48]} {[%emt 00:00:28]} 27. d6
{[%clk 00:23:31]} {[%emt 00:00:03]} Nb6 {[%clk 00:11:23]} {[%emt 00:06:54]} 28.
Bxf7+ {[%clk 00:23:14]} {[%emt 00:00:48]} Qxf7 {[%clk 00:07:58]} {[%emt
00:03:55]} 29. Re7 {[%clk 00:23:28]} {[%emt 00:00:16]} Qf6 {[%clk 00:08:08]}
{[%emt 00:00:20]} 30. Qe3 {[%clk 00:16:12]} {[%emt 00:07:43]} Nxd6 {[%clk
00:06:44]} {[%emt 00:01:57]} 31. Qxc5 {[%clk 00:15:38]} {[%emt 00:01:04]} Rc8
{[%clk 00:05:45]} {[%emt 00:01:28]} 32. Nd5 {[%clk 00:14:58]} {[%emt 00:01:11]}
Qxb2 {[%clk 00:03:34]} {[%emt 00:02:40]} 33. Qxd6 {[%clk 00:15:10]} {[%emt
00:00:19]} 1-0

[Event "Kvibergspelen September 2019"]
[Site "Prioritet Serneke Arena, Krutvagen 2, Gothenburg, Sweden"]
[Date "2019.09.28"]
[Round "5.18"]
[White "Cramling, Anna"]
[Black "Sjoberg, Isak"]
[Result "0-1"]
[TimeControl "15 minutes + 5 seconds per move from move one (Round 1 - 4) / 90 minutes + 30 seconds per move from move one (Round 5 - 8)"]
[WhiteTitle "WFM"]
[WhiteFideId "32009232"]
[BlackFideId "1521640"]
[WhiteElo "2151"]
[BlackElo "2231"]

1. d4 {[%clk 01:30:57]} {[%emt 00:00:02]} Nf6 {[%clk 01:25:56]} {[%emt
00:05:04]} 2. c4 {[%clk 01:30:07]} {[%emt 00:01:21]} e6 {[%clk 01:25:40]}
{[%emt 00:00:45]} 3. Nc3 {[%clk 01:26:41]} {[%emt 00:03:56]} c5 {[%clk
01:25:58]} {[%emt 00:00:12]} 4. d5 {[%clk 01:26:42]} {[%emt 00:00:29]} exd5
{[%clk 01:25:46]} {[%emt 00:00:42]} 5. cxd5 {[%clk 01:27:07]} {[%emt 00:00:06]}
d6 {[%clk 01:26:08]} {[%emt 00:00:08]} 6. e4 {[%clk 01:27:22]} {[%emt
00:00:15]} g6 {[%clk 01:25:28]} {[%emt 00:01:09]} 7. f4 {[%clk 01:27:30]}
{[%emt 00:00:22]} Bg7 {[%clk 01:24:24]} {[%emt 00:01:33]} 8. Bb5+ {[%clk
01:27:56]} {[%emt 00:00:06]} Nfd7 {[%clk 01:24:49]} {[%emt 00:00:05]} 9. Be2
{[%clk 01:27:48]} {[%emt 00:00:37]} O-O {[%clk 01:23:24]} {[%emt 00:01:55]} 10.
Nf3 {[%clk 01:27:50]} {[%emt 00:00:29]} Na6 {[%clk 01:22:13]} {[%emt 00:01:41]}
11. O-O {[%clk 01:27:32]} {[%emt 00:00:47]} Nc7 {[%clk 01:17:52]} {[%emt
00:04:51]} 12. a4 {[%clk 01:27:35]} {[%emt 00:00:27]} Re8 {[%clk 01:17:09]}
{[%emt 00:01:12]} 13. Qc2 {[%clk 01:08:57]} {[%emt 00:19:09]} b6 {[%clk
01:05:51]} {[%emt 00:11:48]} 14. Nb5 {[%clk 00:53:10]} {[%emt 00:16:18]} Nxb5
{[%clk 00:51:49]} {[%emt 00:14:31]} 15. axb5 {[%clk 00:51:10]} {[%emt
00:02:30]} Nf6 {[%clk 00:46:44]} {[%emt 00:05:35]} 16. Bd3 {[%clk 00:39:16]}
{[%emt 00:12:25]} Bd7 {[%clk 00:38:23]} {[%emt 00:08:50]} 17. Bd2 {[%clk
00:17:23]} {[%emt 00:22:24]} Qc8 {[%clk 00:23:47]} {[%emt 00:15:06]} 18. Rfc1
{[%clk 00:13:37]} {[%emt 00:04:17]} Re7 {[%clk 00:22:52]} {[%emt 00:01:24]} 19.
Ra6 {[%clk 00:12:05]} {[%emt 00:02:03]} Qe8 {[%clk 00:21:45]} {[%emt 00:01:36]}
20. Qa4 {[%clk 00:03:54]} {[%emt 00:08:41]} Nxe4 {[%clk 00:21:02]} {[%emt
00:01:13]} 21. Be1 {[%clk 00:02:12]} {[%emt 00:02:13]} Bxb2 {[%clk 00:18:23]}
{[%emt 00:03:09]} 22. Rc2 {[%clk 00:01:18]} {[%emt 00:01:24]} Bd4+ {[%clk
00:18:21]} {[%emt 00:00:31]} 23. Nxd4 {[%clk 00:01:16]} {[%emt 00:00:32]} cxd4
{[%clk 00:18:47]} {[%emt 00:00:04]} 24. Bh4 {[%clk 00:00:43]} {[%emt 00:01:03]}
Nc3 {[%clk 00:17:16]} {[%emt 00:02:02]} 25. Qxd4 {[%clk 00:00:41]} {[%emt
00:00:31]} Ne2+ {[%clk 00:08:46]} {[%emt 00:09:01]} 26. Bxe2 {[%clk 00:00:58]}
{[%emt 00:00:12]} Rxe2 {[%clk 00:09:11]} {[%emt 00:00:05]} 27. Rxe2 {[%clk
00:00:40]} {[%emt 00:00:48]} Qxe2 {[%clk 00:09:39]} {[%emt 00:00:02]} 28. Ra1
{[%clk 00:00:42]} {[%emt 00:00:28]} Qxb5 {[%clk 00:09:49]} {[%emt 00:00:20]} 29.
Bf2 {[%clk 00:00:40]} {[%emt 00:00:31]} Re8 {[%clk 00:03:33]} {[%emt 00:06:46]}
30. Qf6 {[%clk 00:00:47]} {[%emt 00:00:24]} Qb4 {[%clk 00:03:59]} {[%emt
00:00:05]} 31. Rf1 {[%clk 00:00:41]} {[%emt 00:00:35]} Re4 {[%clk 00:04:14]}
{[%emt 00:00:15]} 32. g3 {[%clk 00:00:34]} {[%emt 00:00:38]} Bh3 {[%clk
00:03:00]} {[%emt 00:01:43]} 33. Rd1 {[%clk 00:00:51]} {[%emt 00:00:13]} Qb3
{[%clk 00:02:47]} {[%emt 00:00:44]} 34. Qd8+ {[%clk 00:00:32]} {[%emt
00:00:49]} Kg7 {[%clk 00:03:16]} 35. Bd4+ {[%clk 00:00:34]} {[%emt 00:00:28]}
Rxd4 {[%clk 00:03:44]} {[%emt 00:00:02]} 36. Rxd4 {[%clk 00:00:53]} {[%emt
00:00:12]} Qe3+ {[%clk 00:04:05]} {[%emt 00:00:09]} 0-1

[Event "Kvibergspelen September 2019"]
[Site "Prioritet Serneke Arena, Krutvagen 2, Gothenburg, Sweden"]
[Date "2019.09.28"]
[Round "5.19"]
[White "Bjorkeroth, Johan"]
[Black "Torngren, Gustav"]
[Result "0-1"]
[TimeControl "15 minutes + 5 seconds per move from move one (Round 1 - 4) / 90 minutes + 30 seconds per move from move one (Round 5 - 8)"]
[BlackTitle "CM"]
[WhiteFideId "1719106"]
[BlackFideId "1728970"]
[WhiteElo "2147"]
[BlackElo "2227"]

1. e4 {[%clk 01:30:57]} {[%emt 00:00:02]} c5 {[%clk 01:30:42]} {[%emt
00:00:18]} 2. Nc3 {[%clk 01:31:22]} {[%emt 00:00:05]} Nc6 {[%clk 01:30:58]}
{[%emt 00:00:14]} 3. g3 {[%clk 01:31:46]} {[%emt 00:00:06]} g6 {[%clk
01:31:21]} {[%emt 00:00:08]} 4. Bg2 {[%clk 01:32:12]} {[%emt 00:00:05]} Bg7
{[%clk 01:31:41]} {[%emt 00:00:09]} 5. d3 {[%clk 01:32:37]} {[%emt 00:00:05]}
d6 {[%clk 01:31:53]} {[%emt 00:00:18]} 6. Nge2 {[%clk 01:32:16]} {[%emt
00:00:51]} e6 {[%clk 01:32:05]} {[%emt 00:00:18]} 7. O-O {[%clk 01:31:58]}
{[%emt 00:00:48]} Nge7 {[%clk 01:30:14]} {[%emt 00:02:20]} 8. Be3 {[%clk
01:27:00]} {[%emt 00:05:29]} Nd4 {[%clk 01:30:16]} {[%emt 00:00:28]} 9. Qd2
{[%clk 01:26:22]} {[%emt 00:01:08]} h5 {[%clk 01:30:32]} {[%emt 00:00:13]} 10.
h3 {[%clk 01:22:07]} {[%emt 00:04:46]} O-O {[%clk 01:17:52]} {[%emt 00:13:10]}
11. Nd1 {[%clk 01:03:50]} {[%emt 00:18:48]} b6 {[%clk 01:15:06]} {[%emt
00:03:16]} 12. Nc1 {[%clk 00:56:56]} {[%emt 00:07:23]} Ba6 {[%clk 01:06:48]}
{[%emt 00:08:48]} 13. c3 {[%clk 00:56:33]} {[%emt 00:00:53]} Ndc6 {[%clk
01:07:06]} {[%emt 00:00:12]} 14. Bh6 {[%clk 00:54:48]} {[%emt 00:02:15]} d5
{[%clk 00:59:10]} {[%emt 00:08:26]} 15. Bxg7 {[%clk 00:52:04]} {[%emt
00:03:13]} Kxg7 {[%clk 00:59:29]} {[%emt 00:00:12]} 16. exd5 {[%clk 00:50:51]}
{[%emt 00:01:43]} Nxd5 {[%clk 00:59:28]} {[%emt 00:00:31]} 17. Ne3 {[%clk
00:50:48]} {[%emt 00:00:33]} Nde7 {[%clk 00:51:54]} {[%emt 00:08:04]} 18. Rd1
{[%clk 00:44:15]} {[%emt 00:07:03]} Qd6 {[%clk 00:50:49]} {[%emt 00:01:34]} 19.
Ne2 {[%clk 00:36:09]} {[%emt 00:08:36]} Rad8 {[%clk 00:45:42]} {[%emt
00:05:38]} 20. Nf4 {[%clk 00:32:42]} {[%emt 00:03:58]} Rd7 {[%clk 00:43:03]}
{[%emt 00:03:08]} 21. Qe2 {[%clk 00:16:18]} {[%emt 00:16:54]} Rfd8 {[%clk
00:32:15]} {[%emt 00:11:18]} 22. Nc4 {[%clk 00:14:13]} {[%emt 00:02:35]} Bxc4
{[%clk 00:28:54]} {[%emt 00:03:51]} 23. dxc4 {[%clk 00:14:37]} {[%emt
00:00:06]} Qxd1+ {[%clk 00:29:12]} {[%emt 00:00:11]} 24. Rxd1 {[%clk 00:15:02]}
{[%emt 00:00:06]} Rxd1+ {[%clk 00:29:33]} {[%emt 00:00:09]} 25. Kh2 {[%clk
00:14:40]} {[%emt 00:00:51]} R1d2 {[%clk 00:28:13]} {[%emt 00:01:51]} 26. Qe3
{[%clk 00:13:19]} {[%emt 00:01:52]} Rxb2 {[%clk 00:21:55]} {[%emt 00:06:47]} 27.
g4 {[%clk 00:09:41]} {[%emt 00:04:08]} hxg4 {[%clk 00:19:29]} {[%emt 00:02:56]}
28. hxg4 {[%clk 00:09:58]} {[%emt 00:00:13]} Rdd2 {[%clk 00:18:06]} {[%emt
00:01:53]} 29. Nd3 {[%clk 00:08:40]} {[%emt 00:01:48]} Rxa2 {[%clk 00:18:21]}
{[%emt 00:00:15]} 30. g5 {[%clk 00:06:26]} {[%emt 00:02:43]} Kg8 {[%clk
00:16:32]} {[%emt 00:02:19]} 31. Bxc6 {[%clk 00:04:39]} {[%emt 00:02:19]} Nxc6
{[%clk 00:16:54]} {[%emt 00:00:07]} 32. Qf3 {[%clk 00:02:32]} {[%emt 00:02:36]}
Rac2 {[%clk 00:13:26]} {[%emt 00:03:58]} 33. Qxc6 {[%clk 00:00:39]} {[%emt
00:02:24]} Rxd3 {[%clk 00:13:48]} {[%emt 00:00:08]} 34. Qc8+ {[%clk 00:00:57]}
{[%emt 00:00:12]} Kg7 {[%clk 00:14:03]} {[%emt 00:00:14]} 35. Kg1 {[%clk
00:00:55]} {[%emt 00:00:33]} Rd1+ {[%clk 00:14:24]} {[%emt 00:00:10]} 36. Kg2
{[%clk 00:01:18]} {[%emt 00:00:06]} Rdd2 {[%clk 00:14:47]} {[%emt 00:00:07]} 37.
Qc7 {[%clk 00:00:44]} {[%emt 00:01:04]} Rxf2+ {[%clk 00:15:05]} {[%emt
00:00:12]} 38. Kg1 {[%clk 00:00:34]} {[%emt 00:00:40]} Rfd2 {[%clk 00:14:57]}
{[%emt 00:00:38]} 39. Qe5+ {[%clk 00:00:44]} {[%emt 00:00:21]} Kh7 {[%clk
00:15:22]} {[%emt 00:00:04]} 40. Qe1 {[%clk 00:00:37]} {[%emt 00:00:37]} Rg2+
{[%clk 00:15:44]} {[%emt 00:00:09]} 41. Kh1 {[%clk 00:00:36]} {[%emt 00:00:31]}
Rh2+ {[%clk 00:16:08]} {[%emt 00:00:06]} 42. Kg1 {[%clk 00:01:00]} {[%emt
00:00:05]} Rcg2+ {[%clk 00:16:30]} {[%emt 00:00:08]} 0-1